Cogmind - Beta 11.1 @@@ ROGUE MODE // 2022.09.11 @ 22:11:08 Player: NoobOne Result: Destroyed by G-47 Trooper with Particle Gun Performance ------------- Evolutions (1) 500 Regions Visited (3) 600 Robots Destroyed (54) 270 Value Destroyed (1692) 1692 Prototype IDs (2) 40 Alien Tech Used (0) 0 Bonus (-12) -12 TOTAL SCORE: 3090 Bonus ------- High Alert Combat Kills 251 Friendly Fire -263 Cogmind --------- Core Integrity 0/400 Matter 319/450 Energy 460/460 System Corruption 9% Temperature Cool (53) Movement Treading (240) Ox1 Location -9/Storage Parts ------- > --- POWER (2) -------- Heavy Ion Engine Cooled Ion Engine > --- PROPULSION (2) --- Improved Treads > --- UTILITY (3) ------ Large Matter Pod > --- WEAPON (2) ------- Beam Rifle Heavy Assault Rifle > --- INVENTORY (5) ---- Heavy Ion Engine Cooled Ion Engine Heavy Assault Rifle Peak State ------------ > --- POWER ------------ Heavy Ion Engine Cooled Ion Engine > --- PROPULSION ------- Improved Treads Improved Treads > --- UTILITY ---------- Heat Sink Large Matter Pod Weapon Shielding > --- WEAPON ----------- Beam Cannon Rocket Launcher > --- INVENTORY -------- Heavy Ion Engine Cooled Ion Engine Beam Rifle Heavy Assault Rifle Heavy Assault Rifle [Rating: 17] Favorites ----------- Power Ion Engine Engine Ion Engine Propulsion Light Treads Treads Light Treads Utility Heat Sink Device Heat Sink Storage Large Matter Pod Protection Light Armor Plating Weapon Heavy Assault Rifle Energy Gun Beam Rifle Energy Cannon Beam Cannon Ballistic Gun Heavy Assault Rifle Launcher Rocket Launcher Build | -11 -10 -9 -9 ------- Run | Scr Mat Mat Sto Slots Evolved 2 | . . 2 . Power 1 | . . 1 . Propulsion . | . . . . Utility 1 | . . 1 . Weapon . | . . . . Parts Attached 49 | 5 1 3 40 Power 14 | 1 . 1 12 Engine 14 | 1 . 1 12 Core . | . . . . Reactor . | . . . . Propulsion 12 | 2 . . 10 Treads 12 | 2 . . 10 Leg . | . . . . Wheel . | . . . . Hover . | . . . . Flight . | . . . . Utility 7 | . 1 . 6 Device 3 | . 1 . 2 Storage 1 | . . . 1 Processor . | . . . . Hackware . | . . . . Protection 3 | . . . 3 Artifact . | . . . . Weapon 16 | 2 . 2 12 Energy Gun 6 | 1 . 1 4 Energy Cannon 1 | . . . 1 Ballistic Gun 7 | 1 . 1 5 Ballistic Cannon . | . . . . Launcher 2 | . . . 2 Special Weapon . | . . . . Impact Weapon . | . . . . Slashing Weapon . | . . . . Piercing Weapon . | . . . . Special Melee Weapon . | . . . . Unidentified Prototypes 2 | . . . 2 Parts Lost 18 | . 1 . 17 Power 5 | . . . 5 Propulsion 2 | . . . 2 Utility 5 | . . . 5 Weapon 6 | . 1 . 5 Highest Loss Streak 5 | . 1 . 5 To Critical Strikes . | . . . . Average Slot Usage (%) 88 | . 77 74 92 Engine 18 | . 14 21 18 Treads 21 | . 28 22 21 Device 13 | . 6 11 14 Storage 8 | . . . 10 Protection 4 | . . . 5 Energy Gun 6 | . 14 2 6 Energy Cannon 2 | . . . 2 Ballistic Gun 11 | . 14 16 10 Launcher 1 | . . . 2 Naked Turns . | . . . . Heaviest Build 28 | 9 10 12 28 Greatest Support 46 | 40 40 40 46 Greatest Overweight (x) 5 | . . . 5 Average Overweight (x) . | . . . . Largest Inventory Capacity 5 | 5 5 5 5 Average Capacity 5 | 5 5 5 5 Most Carried 5 | 4 1 5 5 Average Carried 3 | . . 3 4 Final Capacity 5 | 5 5 5 5 Final Carried 5 | . . 5 3 Class Distribution -------------------- 55% | Scavenger-Mutant 44% | Mutant Dominant Class ---------------- Mutant | -10/Materials Mutant | -9/Materials Scavenger-Mutant | -9/Storage Resources | -11 -10 -9 -9 ----------- Run | Scr Mat Mat Sto Matter Collected 1191 | 250 34 116 791 Remotely . | . . . . Salvage Created 1981 | . 91 351 1539 Parts 134 | . 4 31 99 Haulers Intercepted . | . . . . Recyclers Shooed 1 | . 1 . . Parts Field Recycled . | . . . . Retrieved Matter . | . . . . Parts Self-Destructed . | . . . . Prevented . | . . . . Kills | -11 -10 -9 -9 ------- Run | Scr Mat Mat Sto Combat Hostiles Destroyed 47 | . 2 11 34 Guns 28 | . 1 11 16 Cannons 7 | . . . 7 AOE 11 | . 1 . 10 Classes Destroyed 8 | . 1 2 5 Worker 2 | . . . 2 Recycler 1 | . . . 1 Mechanic 1 | . . . 1 Watcher 2 | . . . 2 Swarmer 8 | . . 4 4 Grunt 23 | . 2 6 15 Duelist 2 | . . . 2 Sentry 14 | . . 1 13 Thug 1 | . . . 1 Best Kill Streak 7 | . 2 7 7 Combat Bots Only 7 | . 2 7 6 Max Kills in Single Turn 3 | . 1 2 3 Gunslinging 1 | . . 1 . Exploded 3 | . 1 . 3 Melee . | . . . . Uniques/NPCs Destroyed . | . . . . Combat | -11 -10 -9 -9 -------- Run | Scr Mat Mat Sto Damage Taken 2689 | . 146 286 2257 Core 429 | . 18 47 364 Absorbed by Shields . | . . . . Redirected to Shielding 28 | . . . 28 Regen/Repaired (Parts) 54 | . . . 54 Core Remaining (%) 96 | 100 92 . . Volleys Fired 130 | . 8 25 97 Largest 2 | . 2 2 2 Hottest 93 | . 60 60 93 Shots Fired 244 | . 16 41 187 Gun 216 | . 16 41 159 Cannon 15 | . . . 15 Launcher 13 | . . . 13 Special . | . . . . Kinetic 146 | . 8 37 101 Thermal 76 | . . 4 72 Explosive 13 | . . . 13 Electromagnetic 9 | . 8 . 1 Robot Hit Streak 24 | . 5 10 24 Robot Miss Streak 4 | . 2 2 4 Penetration Max . | . . . . Secondary Targets 5 | . 1 2 2 Max Gunslinging Chain 1 | . 1 1 1 Shots Hit Robots 177 | . 10 33 134 Core Hits 98 | . 5 18 75 Critical Kills . | . . . . Critical Parts Destroyed . | . . . . Critical Strikes 1 | . . . 1 Burn 1 | . . . 1 Melee Attacks . | . . . . Impact . | . . . . Slashing . | . . . . Piercing . | . . . . Sneak Attacks . | . . . . Combat Hostiles . | . . . . Follow-up Attacks . | . . . . Damage Inflicted 3460 | . 204 391 2865 Guns 2048 | . 120 391 1537 Cannons 242 | . . . 242 Explosions 1170 | . 84 . 1086 Melee . | . . . . Ramming . | . . . . Kinetic 1322 | . 64 358 900 Thermal 986 | . 84 33 869 Explosive 1086 | . . . 1086 Electromagnetic 66 | . 56 . 10 Impact . | . . . . Slashing . | . . . . Piercing . | . . . . Highest Corruption 9 | . . 3 9 Average Corruption 3 | . . 2 3 Corruption Purged . | . . . . Corruption Blocked . | . . . . Effects 34 | . . 4 30 Message Errors 9 | . . 1 8 Matter Fused 6 | . . . 6 Heat Flow Errors 5 | . . . 5 Energy Discharges 4 | . . 1 3 Parts Rejected 1 | . . . 1 Data Loss (minor) 5 | . . 1 4 Data Loss (major) 2 | . . . 2 Misfires 1 | . . 1 . Alerts 1 | . . . 1 Overload Shots . | . . . . Overflow Damage 40 | . 16 . 24 Projectiles . | . . . . Explosions 40 | . 16 . 24 Melee . | . . . . Knockbacks . | . . . . Impact . | . . . . Kinetic . | . . . . Secondary . | . . . . Self-Inflicted Damage 254 | . . . 254 Shots 7 | . . . 7 Rammed . | . . . . Targets Rammed . | . . . . Kicked . | . . . . Crushed . | . . . . Highest Temperature 467 | . 18 . 467 Average Temperature 113 | . 13 . 116 Received Heat Transfer 801 | . 24 81 696 Effects 3 | . . . 3 Shutdowns 2 | . . . 2 Short Circuit 1 | . . . 1 Siege Activations . | . . . . Robots Corrupted . | . . . . Combat Hostiles . | . . . . Parts Fried . | . . . . Impact Corruptions . | . . . . Robots Melted 1 | . . . 1 Combat Hostiles 1 | . . . 1 Parts Melted 2 | . . . 2 Heat Transferred 2358 | . 100 75 2183 Parts Sabotaged . | . . . . Parts Stolen . | . . . . Parts Stripped . | . . . . Power Chain Reactions 2 | . 2 . . Missiles Intercepted . | . . . . Alert | -11 -10 -9 -9 ------- Run | Scr Mat Mat Sto Peak Influence 997 | . 116 361 997 Initial 152 | . . 44 152 Average 361 | . 80 236 420 Maximum Alert Level 3 | . . 1 3 Low Security (%) 20 | 100 100 29 9 Level 1 50 | . . 70 51 Level 2 14 | . . . 19 Level 3 14 | . . . 19 Level 4 . | . . . . Level 5 . | . . . . High Security . | . . . . Max Security . | . . . . Squads Dispatched 12 | . 1 2 9 Investigation 4 | . . 1 3 Extermination . | . . . . Reinforcement 3 | . 1 1 1 Assault 2 | . . . 2 Garrison 3 | . . . 3 Intercept . | . . . . Searches Triggered . | . . . . Construction Impeded . | . . . . Haulers Reinforced . | . . . . Active Scanning Responses . | . . . . Cargo Convoy Interrupts . | . . . . Stealth | -11 -10 -9 -9 --------- Run | Scr Mat Mat Sto Distress Signals 3 | . 2 . 1 Communications Jammed . | . . . . Distress Signals . | . . . . Times Spotted 68 | . 10 12 46 Peak Tracking Total 10 | . 7 5 10 Tactical Retreats 2 | . . . 2 Traps | -11 -10 -9 -9 ------- Run | Scr Mat Mat Sto Traps Triggered 6 | . . 2 4 Indirectly . | . . . . Trap Hack Attempts . | . . . . Triggered . | . . . . Disarmed . | . . . . Reprogrammed . | . . . . Reused . | . . . . Traps Extracted . | . . . . Installed . | . . . . Triggered . | . . . . Machines | -11 -10 -9 -9 ---------- Run | Scr Mat Mat Sto Machines Disabled 4 | . 1 . 3 Max in Single Turn 1 | . 1 . 1 Machines Sabotaged . | . . . . Garrisons Compromised . | . . . . Overloaded Fab Kills . | . . . . Hacking | -11 -10 -9 -9 --------- Run | Scr Mat Mat Sto Machines Accessed 8 | . . 2 6 Terminals 4 | . . 1 3 Fabricators . | . . . . Repair Stations 1 | . . . 1 Recycling Units 1 | . . . 1 Scanalyzers 1 | . . 1 . Garrison Access 1 | . . . 1 Total Hacks 32 | . . 15 17 Successful 23 | . . 12 11 Failed 9 | . . 3 6 Catastrophic 1 | . . 1 . Database Lockouts . | . . . . Manual . | . . . . Terminals 13 | . . 3 10 Fabricators . | . . . . Repair Stations 2 | . . . 2 Recycling Units 1 | . . . 1 Scanalyzers 12 | . . 12 . Garrison Access 4 | . . . 4 Terminal Hacks 8 | . . 2 6 Record 1 | . . 1 . Emergency Access Points 1 | . . 1 . Alert Level 2 | . . . 2 Locate Traps 1 | . . . 1 Dispatch Records 1 | . . . 1 Maintenance Status 1 | . . . 1 Zone Layout 1 | . . . 1 Fabricator Hacks . | . . . . Repair Station Hacks 2 | . . . 2 Scan Component 1 | . . . 1 Repair 1 | . . . 1 Recycling Unit Hacks 1 | . . . 1 Report Inventory 1 | . . . 1 Scanalyzer 10 | . . 10 . Insert Component 6 | . . 6 . Analyze 4 | . . 4 . Garrison Access Hacks 2 | . . . 2 Unlock Access 1 | . . . 1 Coupler Status 1 | . . . 1 Unauthorized Hacks . | . . . . Terminals . | . . . . Fabricators . | . . . . Repair Stations . | . . . . Recycling Units . | . . . . Scanalyzers . | . . . . Garrison Access . | . . . . Data Cores Recovered . | . . . . Used . | . . . . Hacking Detections 6 | . . 2 4 Full Trace Events 5 | . . 2 3 Feedback Events 1 | . . . 1 Corruption 1 | . . . 1 Feedback Blocked . | . . . . Robot Schematics Acquired . | . . . . Robots Built . | . . . . Authchips . | . . . . Time . | . . . . Total Robot Build Rating . | . . . . Part Schematics Acquired 4 | . . 4 . Parts Built . | . . . . Authchips . | . . . . Time . | . . . . Total Part Build Rating . | . . . . Parts Repaired 1 | . . . 1 Time 16 | . . . 16 Parts Recycled . | . . . . Recycled Matter . | . . . . Retrieved Matter . | . . . . Retrieved Components . | . . . . Parts Scanalyzed 4 | . . 4 . Part Schematics Acquired 4 | . . 4 . Parts Damaged 2 | . . 2 . Bothacking | -11 -10 -9 -9 ------------ Run | Scr Mat Mat Sto Used RIF Installer . | . . . . Robots Hacked . | . . . . Non-combat . | . . . . Combat . | . . . . Robot Hacks Applied . | . . . . Relay Couplers Released . | . . . . Fabnet Peak Effective % . | . . . . Robots Rewired . | . . . . Allies Hacked . | . . . . Hacks Repelled . | . . . . Allies | -11 -10 -9 -9 -------- Run | Scr Mat Mat Sto Total Allies 2 | . . . 2 Largest Group 2 | . . . 2 Highest-Rated Group 62 | . . . 62 Highest-Rated Ally 31 | . . . 31 Total Orders . | . . . . Ally Attacks 6 | . . . 6 Total Damage 108 | . . . 108 Kills . | . . . . Allies Corrupted . | . . . . Allies Melted . | . . . . Intel | -11 -10 -9 -9 ------- Run | Scr Mat Mat Sto Robot Analysis Total . | . . . . Derelict Logs Recovered . | . . . . Drone Launches . | . . . . Drone Recoveries . | . . . . Exploration | -11 -10 -9 -9 ------------- Run | Scr Mat Mat Sto Turns Passed 2075 | 60 113 326 1576 Spaces Moved 972 | 45 55 150 722 Core 21 | 19 . . 2 Treads 951 | 26 55 150 720 Legs . | . . . . Wheels . | . . . . Hover . | . . . . Flight . | . . . . Fastest Speed 50 | 50 160 160 160 Average Speed 158 | 113 160 160 160 Slowest Speed 300 | 160 160 160 300 Overloaded Moves . | . . . . Propulsion Burnouts . | . . . . Robots Hopped . | . . . . Cave-ins Triggered . | . . . . Exploration Rate (%) 30 | 4 17 14 86 Regions Visited 3 Branch Regions 1 Pre-discovered Areas . | . . . . Known Exits Taken . | . . . . Unknown Exits Taken 3 | 1 1 1 . Scrap Searched . | . . . . Spaces Dug . | . . . . Terrain Destroyed 77 | . 2 . 75 Melee . | . . . . Projectile . | . . . . AOE 77 | . 2 . 75 Terrain Rammed . | . . . . Walls Destroyed . | . . . . Machines Disabled . | . . . . Actions | -11 -10 -9 -9 --------- Run | Scr Mat Mat Sto Total 1280 | 54 64 199 963 Wait 49 | . . 11 38 Move 969 | 44 54 149 722 Hop . | . . . . Pick Up 58 | 5 1 9 43 Fast Attach . | . . . . Attach 34 | 5 1 2 26 Detach . | . . . . Swap 15 | . . 1 14 Drop 25 | . . 2 23 Fire 130 | . 8 25 97 Melee . | . . . . Ram . | . . . . Kick . | . . . . Crush . | . . . . Escape Stasis . | . . . . Rewire . | . . . . Trap . | . . . . Miscellaneous . | . . . . Route ------- -11/Scrapyard -10/Materials -9/Materials -9/Storage (discovered 1 exit: Gar) History --------- Turn | Location | Event 13 | -11/Scrapyard | Discovered new exit (range 15) 61 | -11/Scrapyard | Entered Materials 155 | -10/Materials | Discovered new exit (range 13) 174 | -10/Materials | Entered another Materials area 174 | -9/Materials | Evolved 2 slots: Power x1, Utility x1 292 | -9/Materials | Destroyed 7 combat bots 313 | -9/Materials | Build established: Mutant 377 | -9/Materials | Discovered new exit (range 16) 500 | -9/Materials | Entered Storage 896 | -9/Storage | Build established: Scavenger-Mutant 1204 | -9/Storage | Repaired Imp. Ion Engine 1256 | -9/Storage | Core integrity fell below 50% 1445 | -9/Storage | Identified exit to Garrison 1562 | -9/Storage | Lost 4 parts (1p1u2w) 1738 | -9/Storage | Core integrity fell below 20% 1741 | -9/Storage | Garrison activated, responded to threat 2019 | -9/Storage | Build established: Mutant 2028 | -9/Storage | Met a pair of Derelict thieves 2076 | -9/Storage | Destroyed by G-47 Trooper with Particle Gun Last Messages --------------- G-34 Mercenary unfolds itself. M-13 Machinist unfolds itself. U3BSEC6EFV4XTC>SWBNZI3>Q%ZN3R G-34 Mercenary destroyed. G-47 Trooper destroyed. M-13 Machinist destroyed. Door Terminal disabled. Imp. Treads destroyed. L-31 Rogue destroyed. J3-AO3(g) destroyed. [Achievement: Backstab] Weapon Shielding destroyed. Rocket Launcher destroyed. Destroyed Rocket Launcher. G-34 Mercenary destroyed. Destroyed Ion Engine. Beam Cannon destroyed. Heat Sink destroyed. System corrupted by crushing effect (+4). G-34 Mercenary destroyed. Map ----- +----------------------------------------------------+ | ^ #???# #???? #??????????? | | ##### * #???# #???# #??????????? | | # #######???# #???# #??????????? | | # #?????????# #???# #??????????? | | # #?????????# #???# +??????????? | | # #?????????# #???# #??????????? | | # #?????????# #???# #??????????? | | !" # #?????????# #???# #??????????? | | [%T # #?????????# ##### #??????????? | | !" # #?????#####+# # #??????????? | | # #?????# #??????????? | | ## ## #?????# ! +??????????? | | ??### #?????# """ [ # #??????????? | | ????# #?????# "?" ! ##?????????? | | ????# #?????# "?""* [ #?????????? | | ????# #?????# "?"" # #?????????? | | ????# #?##### """ ##?????????? | | ????# #?#"""# # #??????????? | | ###########"T"########### ##?????????? | | # #?## #?????????? | | # """ ### %! ##????????? | | """ # [[ """ # mggT% #????????? | | """ #?? [[ """??# gg #????????? | | """ #???? ?????# / #?????????? | | #####+########+####+#?# %b= #?????????? | | !! #?# @%% #?????????? | | =%= #?# %[g #????????? | | ########+######### #?###" "###????????? | | #?????# ## #?# #?????????? | | +?????# """ """ ## ###* #?????????? | | #?????# """ """ # [ ## **#?????????? | | #?????# """ """ + ##* * *#?????????? | | #?????# """ """ # #########?????????? | | #?????# """ """ # ! #?????????????????? | | #?????# ## ###########????????? | | #?????# ## ###"""T"""#####????? | | #?????############ # #????? | | #????????????????# # """ """ """ #???? | | #??????########### # """ """ """ ##???? | | #??????# + # """ """ """ #????? | | ######## ## *# #????? | | + [ ## [+% #????? | | ##+##### ## ###############????? | | ## [ ## ##????##???????????? | | ## # #####T#"????????### | | ## " [ "?????#### # | | ## [!# "?????# # | | ## # #######"?????# "" # | | ################### ###???????????# Y" # | | ?? #?#####?????# "" # | +----------------------------------------------------+ Best States ------------- Heat Dissipation 48 Energy Generation 23 Energy Capacity 460 Matter Stores 450 Matter Capacity 450 Sight Range 16 Terrain Scan Density 10 Armor Coverage 150 Weapon Shielding 33 Evasion (%) 50 Recoil Reduction 2 Item Schematics ----------------- Ion Engine | -9/Materials | Scanalyzed Aluminum Leg | -9/Materials | Scanalyzed Sml. Laser | -9/Materials | Scanalyzed Hvy. Assault Rifle | -9/Materials | Scanalyzed Robot Schematics ------------------ None Fabricated ------------ Nothing Alien Tech Used ----------------- None Achievements -------------- Backstab Challenges ------------ None Game ------ Seed ImprovedCorruptionField Manual? 0 Play Time 00:30:43 Cumulative 13.2 hours Start 2022.09.11 @ 21:41:04 End 2022.09.11 @ 22:11:08 Sessions 1 Manual Loads 0 Difficulty Rogue Special Mode None Game No. 12 Rogue 12 Adventurer 0 Explorer 0 Win Type - Total 0 Types 0/0/0/0/0/0/0/0/0 Lore% 8 Gallery% 18 Achievement% 14 Wizard Run 0 Options --------- ASCII 0 Keyboard 0 Movement Mouse Keybinds 0 Fullscreen 1 Font 18/TerminusBold Map View 76x50 Tactical HUD 0 Map Filters NONE Filters NONE Steam 0 RUN: 904498c8-79b7-4890-ab9f-473511113be5